[Event "Titled Tuesday Blitz December 13 Early 2022"]
[White "So, Wesley"]
[Black "Pichot, Alan"]
[WhiteFideId "5202213"]
[BlackFideId "110973"]
[WhiteElo "2763"]
[BlackElo "2561"]
[Result "1/2-1/2"]
[Round "04"]
[TimeControl "180+1"]
[Date "2022.12.13"]
[WhiteClock "0:00:14"]
[BlackClock "0:00:12"]

1. e4 {[%clk 0:02:57]}  c5 {[%clk 0:02:49]} 2. Nf3 {[%clk 0:02:56]}  e6 {[%clk 0:02:49]} 3. g3 {[%clk 0:02:55]}  Nc6 {[%clk 0:02:48]} 4. Bg2 {[%clk 0:02:55]}  Nf6 {[%clk 0:02:49]} 5. Nc3 {[%clk 0:02:55]}  d6 {[%clk 0:02:48]} 6. d4 {[%clk 0:02:53]}  cxd4 {[%clk 0:02:48]} 7. Nxd4 {[%clk 0:02:54]}  Bd7 {[%clk 0:02:46]} 8. Ndb5 {[%clk 0:02:34]}  Qb8 {[%clk 0:02:45]} 9. g4 {[%clk 0:02:28]}  h6 {[%clk 0:02:30]} 10. h4 {[%clk 0:02:24]}  a6 {[%clk 0:02:08]} 11. g5 {[%clk 0:02:23]}  hxg5 {[%clk 0:02:05]} 12. hxg5 {[%clk 0:02:24]}  Rxh1+ {[%clk 0:02:05]} 13. Bxh1 {[%clk 0:02:25]}  Nxe4 {[%clk 0:02:00]} 14. Nxe4 {[%clk 0:02:07]}  axb5 {[%clk 0:02:00]} 15. Bf4 {[%clk 0:02:08]}  Ne5 {[%clk 0:01:35]} 16. Qe2 {[%clk 0:02:05]}  Bc6 {[%clk 0:01:31]} 17. Kf1 {[%clk 0:01:37]}  d5 {[%clk 0:01:14]} 18. Nc3 {[%clk 0:01:36]}  Bd6 {[%clk 0:00:56]} 19. Nxb5 {[%clk 0:01:35]}  Bxb5 {[%clk 0:00:56]} 20. Qxb5+ {[%clk 0:01:35]}  Nc6 {[%clk 0:00:57]} 21. Bd2 {[%clk 0:01:21]}  g6 {[%clk 0:00:57]} 22. c4 {[%clk 0:01:14]}  Kf8 {[%clk 0:00:40]} 23. cxd5 {[%clk 0:01:12]}  Nd4 {[%clk 0:00:40]} 24. Qd3 {[%clk 0:01:09]}  e5 {[%clk 0:00:40]} 25. Bg2 {[%clk 0:01:02]}  Qc8 {[%clk 0:00:37]} 26. Bc3 {[%clk 0:00:52]}  Qg4 {[%clk 0:00:37]} 27. Qh3 {[%clk 0:00:29]}  Qe2+ {[%clk 0:00:31]} 28. Kg1 {[%clk 0:00:29]}  Kg7 {[%clk 0:00:32]} 29. Re1 {[%clk 0:00:28]}  Rh8 {[%clk 0:00:20]} 30. Qg3 {[%clk 0:00:19]}  Qxe1+ {[%clk 0:00:17]} 31. Bxe1 {[%clk 0:00:20]}  Ne2+ {[%clk 0:00:18]} 32. Kf1 {[%clk 0:00:21]}  Nxg3+ {[%clk 0:00:19]} 33. fxg3 {[%clk 0:00:22]}  Ra8 {[%clk 0:00:12]} 34. a3 {[%clk 0:00:21]}  b5 {[%clk 0:00:12]} 35. Ke2 {[%clk 0:00:18]}  Ra4 {[%clk 0:00:11]} 36. Bh3 {[%clk 0:00:13]}  Re4+ {[%clk 0:00:10]} 37. Kf2 {[%clk 0:00:12]}  Rd4 {[%clk 0:00:10]} 38. Bg2 {[%clk 0:00:09]}  Rg4 {[%clk 0:00:10]} 39. Bf3 {[%clk 0:00:08]}  Rxg5 {[%clk 0:00:08]} 40. Bd2 {[%clk 0:00:08]}  Rf5 {[%clk 0:00:08]} 41. g4 {[%clk 0:00:09]}  Rf6 {[%clk 0:00:07]} 42. Bg5 {[%clk 0:00:09]}  Be7 {[%clk 0:00:02]} 43. Bxf6+ {[%clk 0:00:09]}  Kxf6 {[%clk 0:00:03]} 44. Be2 {[%clk 0:00:08]}  b4 {[%clk 0:00:03]} 45. a4 {[%clk 0:00:09]}  Bc5+ {[%clk 0:00:03]} 46. Kf3 {[%clk 0:00:09]}  Ke7 {[%clk 0:00:04]} 47. Ke4 {[%clk 0:00:09]}  Kd6 {[%clk 0:00:04]} 48. g5 {[%clk 0:00:09]}  Bd4 {[%clk 0:00:03]} 49. b3 {[%clk 0:00:09]}  Bc5 {[%clk 0:00:03]} 50. a5 {[%clk 0:00:09]}  Bd4 {[%clk 0:00:03]} 51. a6 {[%clk 0:00:10]}  Ba7 {[%clk 0:00:03]} 52. Bb5 {[%clk 0:00:11]}  Bd4 {[%clk 0:00:02]} 53. Be8 {[%clk 0:00:11]}  Ke7 {[%clk 0:00:03]} 54. Bb5 {[%clk 0:00:10]}  Kd6 {[%clk 0:00:04]} 55. Ba4 {[%clk 0:00:10]}  Ke7 {[%clk 0:00:04]} 56. Bc6 {[%clk 0:00:10]}  Kd6 {[%clk 0:00:05]} 57. Bb7 {[%clk 0:00:11]}  Ke7 {[%clk 0:00:05]} 58. Kd3 {[%clk 0:00:10]}  Kd6 {[%clk 0:00:05]} 59. Bc6 {[%clk 0:00:11]}  Ke7 {[%clk 0:00:06]} 60. Kc4 {[%clk 0:00:11]}  Kd6 {[%clk 0:00:04]} 61. Kxb4 {[%clk 0:00:11]}  e4 {[%clk 0:00:05]} 62. Kc4 {[%clk 0:00:12]}  Bb6 {[%clk 0:00:04]} 63. b4 {[%clk 0:00:12]}  e3 {[%clk 0:00:05]} 64. Kd3 {[%clk 0:00:12]}  Ba7 {[%clk 0:00:05]} 65. Ke2 {[%clk 0:00:11]}  Ke5 {[%clk 0:00:06]} 66. b5 {[%clk 0:00:11]}  Bb6 {[%clk 0:00:07]} 67. Be8 {[%clk 0:00:11]}  Kxd5 {[%clk 0:00:05]} 68. Bxf7+ {[%clk 0:00:11]}  Ke5 {[%clk 0:00:06]} 69. Bxg6 {[%clk 0:00:05]}  Kf4 {[%clk 0:00:06]} 70. Kd3 {[%clk 0:00:05]}  Kxg5 {[%clk 0:00:05]} 71. Be8 {[%clk 0:00:06]}  Kf4 {[%clk 0:00:05]} 72. Bh5 {[%clk 0:00:06]}  Ke5 {[%clk 0:00:05]} 73. Kc4 {[%clk 0:00:06]}  Kd6 {[%clk 0:00:05]} 74. Be2 {[%clk 0:00:06]}  Ba7 {[%clk 0:00:06]} 75. Kd3 {[%clk 0:00:07]}  Bb6 {[%clk 0:00:06]} 76. Kc4 {[%clk 0:00:07]}  Ba7 {[%clk 0:00:07]} 77. Kd3 {[%clk 0:00:08]}  Bb6 {[%clk 0:00:07]} 78. Ke4 {[%clk 0:00:09]}  Ba7 {[%clk 0:00:08]} 79. Kf5 {[%clk 0:00:09]}  Bb6 {[%clk 0:00:08]} 80. Kf6 {[%clk 0:00:10]}  Kc7 {[%clk 0:00:09]} 81. Ke7 {[%clk 0:00:10]}  Ba7 {[%clk 0:00:09]} 82. Ke8 {[%clk 0:00:11]}  Bb6 {[%clk 0:00:10]} 83. Ke7 {[%clk 0:00:11]}  Ba7 {[%clk 0:00:11]} 84. Ke6 {[%clk 0:00:12]}  Bb6 {[%clk 0:00:11]} 85. Kd5 {[%clk 0:00:13]}  Ba7 {[%clk 0:00:12]} 86. Kc4 {[%clk 0:00:14]}  Bb6 {[%clk 0:00:12]} 87. Kb4 {[%clk 0:00:14]}  Kd6 {[%clk 0:00:12]} 88. Kc4 {[%clk 0:00:14]} 1/2-1/2


[Site "https://www.chess.com"]

[Event "Titled Tuesday Blitz December 13 Early 2022"]
[White "Sonnenschein, Philipp"]
[Black "Weetik, Vjacheslav"]
[WhiteFideId "16250877"]
[BlackFideId "4153472"]
[WhiteElo "2224"]
[BlackElo "2469"]
[Result "1/2-1/2"]
[Round "04"]
[TimeControl "180+1"]
[Date "2022.12.14"]
[WhiteClock "0:00:07"]
[BlackClock "0:00:06"]

1. d4 {[%clk 0:03:00]}  d5 {[%clk 0:02:59]} 2. c4 {[%clk 0:03:01]}  e6 {[%clk 0:03:00]} 3. Nf3 {[%clk 0:03:01]}  Nf6 {[%clk 0:03:00]} 4. g3 {[%clk 0:03:01]}  Bb4+ {[%clk 0:03:00]} 5. Bd2 {[%clk 0:02:59]}  a5 {[%clk 0:03:01]} 6. Bg2 {[%clk 0:02:56]}  dxc4 {[%clk 0:02:58]} 7. Qc2 {[%clk 0:02:54]}  Nc6 {[%clk 0:02:58]} 8. Qxc4 {[%clk 0:02:51]}  Qd5 {[%clk 0:02:58]} 9. Qxd5 {[%clk 0:02:49]}  exd5 {[%clk 0:02:58]} 10. O-O {[%clk 0:02:45]}  O-O {[%clk 0:02:58]} 11. Bf4 {[%clk 0:02:38]}  Bd6 {[%clk 0:02:58]} 12. Bxd6 {[%clk 0:02:35]}  cxd6 {[%clk 0:02:59]} 13. Nc3 {[%clk 0:02:35]}  Be6 {[%clk 0:02:59]} 14. e3 {[%clk 0:02:29]}  Rac8 {[%clk 0:02:54]} 15. Ng5 {[%clk 0:02:27]}  Rfd8 {[%clk 0:02:49]} 16. Rac1 {[%clk 0:02:25]}  h6 {[%clk 0:02:45]} 17. Nxe6 {[%clk 0:02:25]}  fxe6 {[%clk 0:02:46]} 18. a3 {[%clk 0:02:19]}  Kf7 {[%clk 0:02:39]} 19. Rc2 {[%clk 0:02:16]}  Na7 {[%clk 0:02:19]} 20. Rfc1 {[%clk 0:02:14]}  Ke7 {[%clk 0:02:03]} 21. Bf1 {[%clk 0:02:07]}  Ne4 {[%clk 0:01:46]} 22. Nb5 {[%clk 0:02:05]}  Rxc2 {[%clk 0:01:43]} 23. Rxc2 {[%clk 0:02:06]}  Rc8 {[%clk 0:01:34]} 24. Rxc8 {[%clk 0:02:03]}  Nxc8 {[%clk 0:01:34]} 25. Bd3 {[%clk 0:01:38]}  Nb6 {[%clk 0:01:31]} 26. Bxe4 {[%clk 0:01:14]}  dxe4 {[%clk 0:01:30]} 27. b3 {[%clk 0:01:15]}  a4 {[%clk 0:01:26]} 28. bxa4 {[%clk 0:01:14]}  Nxa4 {[%clk 0:01:03]} 29. f3 {[%clk 0:01:08]}  d5 {[%clk 0:00:39]} 30. fxe4 {[%clk 0:00:55]}  dxe4 {[%clk 0:00:39]} 31. Kf2 {[%clk 0:00:55]}  Kd7 {[%clk 0:00:39]} 32. Ke2 {[%clk 0:00:51]}  Kc6 {[%clk 0:00:29]} 33. Na7+ {[%clk 0:00:51]}  Kd5 {[%clk 0:00:22]} 34. Nb5 {[%clk 0:00:44]}  b6 {[%clk 0:00:20]} 35. Kd2 {[%clk 0:00:39]}  Kc6 {[%clk 0:00:20]} 36. Nc3 {[%clk 0:00:38]}  Nxc3 {[%clk 0:00:05]} 37. Kxc3 {[%clk 0:00:38]}  Kb5 {[%clk 0:00:06]} 38. Kb3 {[%clk 0:00:38]}  Ka5 {[%clk 0:00:07]} 39. a4 {[%clk 0:00:17]}  b5 {[%clk 0:00:04]} 40. axb5 {[%clk 0:00:18]}  Kxb5 {[%clk 0:00:05]} 41. Kc3 {[%clk 0:00:17]}  g6 {[%clk 0:00:04]} 42. g4 {[%clk 0:00:16]}  Kb6 {[%clk 0:00:02]} 43. Kb4 {[%clk 0:00:15]}  Kc6 {[%clk 0:00:02]} 44. Kc4 {[%clk 0:00:15]}  Kd6 {[%clk 0:00:02]} 45. Kb4 {[%clk 0:00:09]}  Kc6 {[%clk 0:00:01]} 46. Kc4 {[%clk 0:00:10]}  Kd6 {[%clk 0:00:01]} 47. Kb5 {[%clk 0:00:09]}  Kd5 {[%clk 0:00:01]} 48. Kb4 {[%clk 0:00:09]}  Kd6 {[%clk 0:00:01]} 49. Kc4 {[%clk 0:00:09]}  Kc6 {[%clk 0:00:01]} 50. h4 {[%clk 0:00:09]}  Kd6 {[%clk 0:00:02]} 51. Kb5 {[%clk 0:00:08]}  Kd5 {[%clk 0:00:02]} 52. Kb4 {[%clk 0:00:06]}  h5 {[%clk 0:00:01]} 53. gxh5 {[%clk 0:00:04]}  gxh5 {[%clk 0:00:01]} 54. Kb5 {[%clk 0:00:05]}  e5 {[%clk 0:00:02]} 55. dxe5 {[%clk 0:00:05]}  Kxe5 {[%clk 0:00:02]} 56. Kc5 {[%clk 0:00:05]}  Kf5 {[%clk 0:00:03]} 57. Kd5 {[%clk 0:00:06]}  Kg4 {[%clk 0:00:03]} 58. Kxe4 {[%clk 0:00:06]}  Kxh4 {[%clk 0:00:04]} 59. Kf3 {[%clk 0:00:06]}  Kg5 {[%clk 0:00:04]} 60. Kg3 {[%clk 0:00:06]}  Kf5 {[%clk 0:00:05]} 61. Kh4 {[%clk 0:00:06]}  Ke4 {[%clk 0:00:05]} 62. Kxh5 {[%clk 0:00:07]}  Kxe3 {[%clk 0:00:06]} 1/2-1/2


[Site "https://www.chess.com"]

[Event "Titled Tuesday Blitz December 13 Early 2022"]
[White "Szpar, Milosz"]
[Black "Miller, Luke C"]
[WhiteFideId "1184989"]
[BlackFideId "2096935"]
[WhiteElo "2455"]
[BlackElo "2509"]
[Result "1-0"]
[Round "04"]
[TimeControl "180+1"]
[Date "2022.12.14"]
[WhiteClock "0:00:08"]
[BlackClock "0:00:11"]

1. e4 {[%clk 0:03:00]}  c5 {[%clk 0:02:59]} 2. c3 {[%clk 0:03:00]}  e6 {[%clk 0:02:58]} 3. d4 {[%clk 0:03:00]}  d5 {[%clk 0:02:57]} 4. e5 {[%clk 0:03:00]}  Nc6 {[%clk 0:02:57]} 5. Nf3 {[%clk 0:03:00]}  Qb6 {[%clk 0:02:57]} 6. a3 {[%clk 0:02:59]}  c4 {[%clk 0:02:49]} 7. Nbd2 {[%clk 0:02:51]}  Bd7 {[%clk 0:02:47]} 8. Be2 {[%clk 0:02:43]}  f6 {[%clk 0:02:33]} 9. O-O {[%clk 0:02:23]}  fxe5 {[%clk 0:02:23]} 10. Nxe5 {[%clk 0:02:06]}  Nxe5 {[%clk 0:01:56]} 11. dxe5 {[%clk 0:02:06]}  Ne7 {[%clk 0:01:50]} 12. b4 {[%clk 0:01:56]}  cxb3 {[%clk 0:01:47]} 13. Nxb3 {[%clk 0:01:57]}  Ba4 {[%clk 0:01:42]} 14. Rb1 {[%clk 0:01:56]}  Rc8 {[%clk 0:01:30]} 15. Be3 {[%clk 0:01:56]}  Qc7 {[%clk 0:01:21]} 16. Qd4 {[%clk 0:01:47]}  Bd7 {[%clk 0:01:18]} 17. Qg4 {[%clk 0:01:21]}  Nf5 {[%clk 0:01:15]} 18. Bd4 {[%clk 0:01:16]}  Be7 {[%clk 0:01:11]} 19. Qh5+ {[%clk 0:01:13]}  g6 {[%clk 0:01:10]} 20. Qh3 {[%clk 0:01:12]}  O-O {[%clk 0:01:07]} 21. Bd3 {[%clk 0:01:06]}  Bxa3 {[%clk 0:01:01]} 22. g4 {[%clk 0:01:00]}  Nxd4 {[%clk 0:00:55]} 23. cxd4 {[%clk 0:01:00]}  Qc3 {[%clk 0:00:50]} 24. Qe3 {[%clk 0:00:56]}  Ba4 {[%clk 0:00:41]} 25. Nd2 {[%clk 0:00:56]}  b6 {[%clk 0:00:37]} 26. h4 {[%clk 0:00:39]}  Bc2 {[%clk 0:00:31]} 27. Bxc2 {[%clk 0:00:36]}  Qxe3 {[%clk 0:00:31]} 28. fxe3 {[%clk 0:00:37]}  Rxc2 {[%clk 0:00:29]} 29. Rxf8+ {[%clk 0:00:24]}  Bxf8 {[%clk 0:00:30]} 30. Nf3 {[%clk 0:00:20]}  Rc6 {[%clk 0:00:23]} 31. h5 {[%clk 0:00:20]}  a5 {[%clk 0:00:21]} 32. Kf2 {[%clk 0:00:19]}  a4 {[%clk 0:00:21]} 33. hxg6 {[%clk 0:00:11]}  hxg6 {[%clk 0:00:20]} 34. Ke2 {[%clk 0:00:09]}  a3 {[%clk 0:00:20]} 35. Kd3 {[%clk 0:00:08]}  b5 {[%clk 0:00:19]} 36. Rxb5 {[%clk 0:00:07]}  Ra6 {[%clk 0:00:14]} 37. Rb1 {[%clk 0:00:08]}  Bb4 {[%clk 0:00:12]} 38. Kc2 {[%clk 0:00:04]}  a2 {[%clk 0:00:10]} 39. Ra1 {[%clk 0:00:05]}  Rc6+ {[%clk 0:00:09]} 40. Kb3 {[%clk 0:00:04]}  Be7 {[%clk 0:00:07]} 41. Rxa2 {[%clk 0:00:05]}  Kf7 {[%clk 0:00:07]} 42. Ra7 {[%clk 0:00:04]}  Ke8 {[%clk 0:00:06]} 43. Ng5 {[%clk 0:00:04]}  Rc8 {[%clk 0:00:07]} 44. Nf3 {[%clk 0:00:03]}  Rb8+ {[%clk 0:00:08]} 45. Kc2 {[%clk 0:00:03]}  Kf7 {[%clk 0:00:08]} 46. Kd3 {[%clk 0:00:04]}  Rc8 {[%clk 0:00:09]} 47. Ng5+ {[%clk 0:00:04]}  Ke8 {[%clk 0:00:09]} 48. Nxe6 {[%clk 0:00:05]}  Rb8 {[%clk 0:00:09]} 49. Nc7+ {[%clk 0:00:05]}  Kd8 {[%clk 0:00:09]} 50. Nxd5 {[%clk 0:00:06]}  Rb3+ {[%clk 0:00:09]} 51. Ke4 {[%clk 0:00:06]}  Rb1 {[%clk 0:00:10]} 52. Nxe7 {[%clk 0:00:06]}  Rg1 {[%clk 0:00:11]} 53. Nc6+ {[%clk 0:00:07]}  Kc8 {[%clk 0:00:11]} 54. Kd5 {[%clk 0:00:08]} 1-0


[Site "https://www.chess.com"]

[Event "Titled Tuesday Blitz December 13 Early 2022"]
[White "Taboas Rodriguez, Daniel"]
[Black "Urazayev, Arystanbek"]
[WhiteFideId "2208466"]
[BlackFideId "13709810"]
[WhiteElo "2329"]
[BlackElo "2463"]
[Result "1-0"]
[Round "04"]
[TimeControl "180+1"]
[Date "2022.12.14"]
[WhiteClock "0:00:15"]
[BlackClock "0:00:03"]

1. d4 {[%clk 0:03:00]}  Nf6 {[%clk 0:02:59]} 2. Nf3 {[%clk 0:03:01]}  g6 {[%clk 0:02:57]} 3. c4 {[%clk 0:03:01]}  Bg7 {[%clk 0:02:54]} 4. Nc3 {[%clk 0:03:02]}  O-O {[%clk 0:02:53]} 5. e4 {[%clk 0:03:02]}  d6 {[%clk 0:02:50]} 6. Be2 {[%clk 0:03:03]}  e5 {[%clk 0:02:48]} 7. dxe5 {[%clk 0:03:04]}  dxe5 {[%clk 0:02:46]} 8. Qxd8 {[%clk 0:03:05]}  Rxd8 {[%clk 0:02:45]} 9. Bg5 {[%clk 0:03:05]}  Re8 {[%clk 0:02:40]} 10. Nd5 {[%clk 0:03:06]}  Nxd5 {[%clk 0:02:39]} 11. cxd5 {[%clk 0:03:07]}  c6 {[%clk 0:02:40]} 12. Bc4 {[%clk 0:03:07]}  b5 {[%clk 0:02:40]} 13. Bb3 {[%clk 0:03:07]}  Bb7 {[%clk 0:02:36]} 14. Rc1 {[%clk 0:03:06]}  cxd5 {[%clk 0:02:28]} 15. Rc7 {[%clk 0:03:06]}  Bc6 {[%clk 0:02:07]} 16. O-O {[%clk 0:03:05]}  a5 {[%clk 0:02:00]} 17. exd5 {[%clk 0:02:56]}  Bd7 {[%clk 0:01:58]} 18. d6 {[%clk 0:02:54]}  a4 {[%clk 0:01:44]} 19. Bd5 {[%clk 0:02:54]}  Ra6 {[%clk 0:01:44]} 20. Rd1 {[%clk 0:02:53]}  Bf8 {[%clk 0:01:40]} 21. Be7 {[%clk 0:01:59]}  Bxe7 {[%clk 0:01:31]} 22. dxe7 {[%clk 0:01:59]}  Rxe7 {[%clk 0:01:30]} 23. Ng5 {[%clk 0:01:52]}  Kg7 {[%clk 0:01:16]} 24. Nxf7 {[%clk 0:01:19]}  Rxf7 {[%clk 0:01:14]} 25. Bxf7 {[%clk 0:01:19]}  Kxf7 {[%clk 0:01:15]} 26. Rb7 {[%clk 0:01:06]}  Ra8 {[%clk 0:01:11]} 27. Rdxd7+ {[%clk 0:01:02]}  Nxd7 {[%clk 0:01:10]} 28. Rxd7+ {[%clk 0:01:03]}  Ke6 {[%clk 0:01:09]} 29. Rxh7 {[%clk 0:01:02]}  Rc8 {[%clk 0:01:10]} 30. g3 {[%clk 0:00:58]}  Rc2 {[%clk 0:01:07]} 31. b3 {[%clk 0:00:56]}  Rxa2 {[%clk 0:01:01]} 32. bxa4 {[%clk 0:00:55]}  bxa4 {[%clk 0:01:00]} 33. Rg7 {[%clk 0:00:56]}  Kf6 {[%clk 0:00:52]} 34. Ra7 {[%clk 0:00:56]}  e4 {[%clk 0:00:52]} 35. Ra5 {[%clk 0:00:51]}  a3 {[%clk 0:00:39]} 36. h4 {[%clk 0:00:49]}  Ke6 {[%clk 0:00:33]} 37. g4 {[%clk 0:00:49]}  Kf6 {[%clk 0:00:30]} 38. Kf1 {[%clk 0:00:45]}  Ra1+ {[%clk 0:00:19]} 39. Kg2 {[%clk 0:00:45]}  Kg7 {[%clk 0:00:18]} 40. g5 {[%clk 0:00:44]}  Kf7 {[%clk 0:00:17]} 41. Ra6 {[%clk 0:00:44]}  Kg7 {[%clk 0:00:17]} 42. Ra7+ {[%clk 0:00:43]}  Kf8 {[%clk 0:00:12]} 43. Kg3 {[%clk 0:00:43]}  a2 {[%clk 0:00:10]} 44. Kf4 {[%clk 0:00:43]}  e3 {[%clk 0:00:09]} 45. Kf3 {[%clk 0:00:22]}  exf2 {[%clk 0:00:07]} 46. Kxf2 {[%clk 0:00:23]}  Rh1 {[%clk 0:00:03]} 47. Ra8+ {[%clk 0:00:15]}  Ke7 {[%clk 0:00:03]} 48. Ra6 {[%clk 0:00:15]} 1-0


[Site "https://www.chess.com"]

[Event "Titled Tuesday Blitz December 13 Early 2022"]
[White "Terzi, Alexei"]
[Black "Sargissyan, Sargis"]
[WhiteFideId "13505076"]
[BlackFideId "13303210"]
[WhiteElo "2172"]
[BlackElo "2109"]
[Result "1/2-1/2"]
[Round "04"]
[TimeControl "180+1"]
[Date "2022.12.14"]
[WhiteClock "0:00:25"]
[BlackClock "0:00:31"]

1. e4 {[%clk 0:03:00]}  e5 {[%clk 0:02:57]} 2. Nf3 {[%clk 0:03:01]}  Nc6 {[%clk 0:02:58]} 3. Bb5 {[%clk 0:03:01]}  a6 {[%clk 0:02:58]} 4. Ba4 {[%clk 0:03:01]}  Nf6 {[%clk 0:02:59]} 5. d3 {[%clk 0:03:01]}  b5 {[%clk 0:02:58]} 6. Bb3 {[%clk 0:03:01]}  Be7 {[%clk 0:02:58]} 7. a4 {[%clk 0:02:58]}  b4 {[%clk 0:02:56]} 8. Bd5 {[%clk 0:02:58]}  Nxd5 {[%clk 0:02:26]} 9. exd5 {[%clk 0:02:59]}  Nd4 {[%clk 0:02:26]} 10. Nxe5 {[%clk 0:03:00]}  d6 {[%clk 0:02:11]} 11. Nc6 {[%clk 0:02:47]}  Nxc6 {[%clk 0:02:10]} 12. dxc6 {[%clk 0:02:48]}  O-O {[%clk 0:02:08]} 13. O-O {[%clk 0:02:48]}  Be6 {[%clk 0:02:00]} 14. Qf3 {[%clk 0:02:40]}  d5 {[%clk 0:01:58]} 15. Bf4 {[%clk 0:02:25]}  Qe8 {[%clk 0:01:54]} 16. Nd2 {[%clk 0:01:43]}  Qxc6 {[%clk 0:01:54]} 17. Rfc1 {[%clk 0:01:42]}  Qd7 {[%clk 0:01:51]} 18. Be5 {[%clk 0:01:39]}  f6 {[%clk 0:01:49]} 19. Bf4 {[%clk 0:01:37]}  c5 {[%clk 0:01:47]} 20. Re1 {[%clk 0:01:34]}  Rfe8 {[%clk 0:01:48]} 21. h3 {[%clk 0:01:30]}  Bf8 {[%clk 0:01:40]} 22. b3 {[%clk 0:01:30]}  Bf7 {[%clk 0:01:40]} 23. Qg3 {[%clk 0:01:25]}  Rxe1+ {[%clk 0:01:33]} 24. Rxe1 {[%clk 0:01:26]}  Re8 {[%clk 0:01:33]} 25. Rxe8 {[%clk 0:01:25]}  Qxe8 {[%clk 0:01:33]} 26. Qe3 {[%clk 0:01:24]}  g5 {[%clk 0:01:21]} 27. Bg3 {[%clk 0:01:17]}  Qxe3 {[%clk 0:01:09]} 28. fxe3 {[%clk 0:01:18]}  Kg7 {[%clk 0:01:05]} 29. e4 {[%clk 0:01:12]}  Kg6 {[%clk 0:01:01]} 30. Bc7 {[%clk 0:00:55]}  f5 {[%clk 0:00:59]} 31. exf5+ {[%clk 0:00:45]}  Kxf5 {[%clk 0:00:59]} 32. g4+ {[%clk 0:00:43]}  Ke6 {[%clk 0:00:55]} 33. Kf2 {[%clk 0:00:43]}  Bg7 {[%clk 0:00:55]} 34. Nf3 {[%clk 0:00:38]}  h6 {[%clk 0:00:48]} 35. Bb8 {[%clk 0:00:37]}  Kd7 {[%clk 0:00:45]} 36. Be5 {[%clk 0:00:36]}  Bf8 {[%clk 0:00:37]} 37. Bb2 {[%clk 0:00:34]}  Be6 {[%clk 0:00:36]} 38. Ne5+ {[%clk 0:00:34]}  Kc7 {[%clk 0:00:35]} 39. Ng6 {[%clk 0:00:32]}  Bd6 {[%clk 0:00:36]} 40. Be5 {[%clk 0:00:32]}  c4 {[%clk 0:00:35]} 41. Bxd6+ {[%clk 0:00:27]}  Kxd6 {[%clk 0:00:36]} 42. d4 {[%clk 0:00:28]}  cxb3 {[%clk 0:00:35]} 43. cxb3 {[%clk 0:00:28]}  Bd7 {[%clk 0:00:35]} 44. Ne5 {[%clk 0:00:27]}  Be8 {[%clk 0:00:33]} 45. Kg3 {[%clk 0:00:20]}  a5 {[%clk 0:00:32]} 46. h4 {[%clk 0:00:21]}  Ke6 {[%clk 0:00:31]} 47. hxg5 {[%clk 0:00:20]}  hxg5 {[%clk 0:00:31]} 48. Kf2 {[%clk 0:00:21]}  Kd6 {[%clk 0:00:31]} 49. Ke3 {[%clk 0:00:21]}  Ke6 {[%clk 0:00:31]} 50. Kd2 {[%clk 0:00:21]}  Kd6 {[%clk 0:00:32]} 51. Nf3 {[%clk 0:00:22]}  Bd7 {[%clk 0:00:30]} 52. Nxg5 {[%clk 0:00:22]}  Bxg4 {[%clk 0:00:30]} 53. Nf7+ {[%clk 0:00:23]}  Kc7 {[%clk 0:00:28]} 54. Ne5 {[%clk 0:00:23]}  Bf5 {[%clk 0:00:28]} 55. Nf3 {[%clk 0:00:22]}  Kd6 {[%clk 0:00:28]} 56. Ne1 {[%clk 0:00:22]}  Be4 {[%clk 0:00:28]} 57. Nd3 {[%clk 0:00:21]}  Bxd3 {[%clk 0:00:28]} 58. Kxd3 {[%clk 0:00:22]}  Ke6 {[%clk 0:00:29]} 59. Ke3 {[%clk 0:00:22]}  Kf5 {[%clk 0:00:29]} 60. Kf3 {[%clk 0:00:23]}  Kg5 {[%clk 0:00:29]} 61. Kg3 {[%clk 0:00:24]}  Kf5 {[%clk 0:00:30]} 62. Kf3 {[%clk 0:00:24]}  Kg5 {[%clk 0:00:31]} 63. Kg3 {[%clk 0:00:25]}  Kf5 {[%clk 0:00:31]} 64. Kf3 {[%clk 0:00:25]} 1/2-1/2


[Site "https://www.chess.com"]

[Event "Titled Tuesday Blitz December 13 Early 2022"]
[White "Thiel, Thomas"]
[Black "Balint, Vilmos"]
[WhiteFideId "4615964"]
[BlackFideId "718050"]
[WhiteElo "2217"]
[BlackElo "2183"]
[Result "0-1"]
[Round "04"]
[TimeControl "180+1"]
[Date "2022.12.14"]
[WhiteClock "0:00:01"]
[BlackClock "0:01:25"]

1. e4 {[%clk 0:03:00]}  e5 {[%clk 0:02:51]} 2. Nf3 {[%clk 0:02:59]}  Nc6 {[%clk 0:02:52]} 3. d4 {[%clk 0:02:57]}  exd4 {[%clk 0:02:52]} 4. Nxd4 {[%clk 0:02:58]}  Bc5 {[%clk 0:02:51]} 5. Nb3 {[%clk 0:02:56]}  Bb6 {[%clk 0:02:52]} 6. Nc3 {[%clk 0:02:56]}  d6 {[%clk 0:02:52]} 7. Qe2 {[%clk 0:02:55]}  Be6 {[%clk 0:02:52]} 8. Be3 {[%clk 0:02:54]}  Qd7 {[%clk 0:02:50]} 9. O-O-O {[%clk 0:02:53]}  Nge7 {[%clk 0:02:49]} 10. Nd5 {[%clk 0:02:48]}  O-O {[%clk 0:02:38]} 11. Qb5 {[%clk 0:02:14]}  Bxd5 {[%clk 0:02:29]} 12. exd5 {[%clk 0:02:06]}  Bxe3+ {[%clk 0:02:29]} 13. fxe3 {[%clk 0:02:06]}  Ne5 {[%clk 0:02:30]} 14. Qxd7 {[%clk 0:01:50]}  Nxd7 {[%clk 0:02:30]} 15. c4 {[%clk 0:01:49]}  b6 {[%clk 0:02:21]} 16. Nd4 {[%clk 0:01:48]}  Ne5 {[%clk 0:02:19]} 17. Nf3 {[%clk 0:01:35]}  Ng4 {[%clk 0:02:19]} 18. Re1 {[%clk 0:01:33]}  Rfe8 {[%clk 0:02:10]} 19. h3 {[%clk 0:01:31]}  Nf2 {[%clk 0:02:07]} 20. Rh2 {[%clk 0:01:24]}  Ne4 {[%clk 0:02:01]} 21. Bd3 {[%clk 0:01:21]}  Nf5 {[%clk 0:01:59]} 22. g4 {[%clk 0:01:14]}  Nfg3 {[%clk 0:01:56]} 23. Bxe4 {[%clk 0:01:03]}  Nxe4 {[%clk 0:01:54]} 24. Nd2 {[%clk 0:00:53]}  Nc5 {[%clk 0:01:43]} 25. Kc2 {[%clk 0:00:50]}  a5 {[%clk 0:01:43]} 26. e4 {[%clk 0:00:43]}  Re5 {[%clk 0:01:42]} 27. Rhe2 {[%clk 0:00:43]}  Rae8 {[%clk 0:01:42]} 28. b3 {[%clk 0:00:41]}  h5 {[%clk 0:01:40]} 29. a3 {[%clk 0:00:31]}  hxg4 {[%clk 0:01:38]} 30. hxg4 {[%clk 0:00:31]}  Rg5 {[%clk 0:01:38]} 31. b4 {[%clk 0:00:30]}  axb4 {[%clk 0:01:36]} 32. axb4 {[%clk 0:00:31]}  Na6 {[%clk 0:01:30]} 33. Kc3 {[%clk 0:00:18]}  Rxg4 {[%clk 0:01:30]} 34. Re3 {[%clk 0:00:11]}  Nb8 {[%clk 0:01:28]} 35. e5 {[%clk 0:00:08]}  dxe5 {[%clk 0:01:26]} 36. Rxe5 {[%clk 0:00:09]}  Rxe5 {[%clk 0:01:26]} 37. Rxe5 {[%clk 0:00:09]}  Kf8 {[%clk 0:01:26]} 38. Re3 {[%clk 0:00:04]}  Nd7 {[%clk 0:01:26]} 39. b5 {[%clk 0:00:03]}  f6 {[%clk 0:01:25]} 40. Nb3 {[%clk 0:00:01]}  Ne5 {[%clk 0:01:25]} 0-1


[Site "https://www.chess.com"]